fUSD/lending_fUSD_20240726
["ID","MTS","AMOUNT","RATE_DAILY","PERIOD"]
[333258946,1721998232832,-1515.51,0.00010999,2]
[333258947,1721998232841,-1515.51,0.00010999,2]
[333258948,1721998232850,-1515.51,0.00010999,2]
[333258949,1721998232860,-1515.51,0.00010999,2]
[333258950,1721998232869,-1515.51,0.00010999,2]
[333258951,1721998232877,-1515.51,0.00010999,2]
[333258952,1721998232888,-1515.51,0.00010999,2]
[333258953,1721998232898,-1515.51,0.00010999,2]
[333258954,1721998232907,-1515.51,0.00010999,2]
[333258955,1721998232917,-1515.65064623,0.00010999,2]
[333258956,1721998232926,-455.33241778,0.00010999,2]
[333258957,1721998232935,-33001.0,0.00011,2]
[333258958,1721998232944,-60351.22145352,0.00011,2]
[333258959,1721998232956,-3832.64287863,0.00011,2]
[333258960,1721998232967,-14198.30525229,0.00011,2]
[333258961,1721998232977,-46351.68907466,0.00011,2]
[333258962,1721998232988,-4782.84240991,0.00011,2]
[333258963,1721998232999,-965.41908988,0.00011,2]
[333258964,1721998233010,-346.48303694,0.00011,2]
[333258965,1721998233023,-626.730532,0.00011,2]
[333258966,1721998233038,-5710.98748693,0.00011,2]
[333258967,1721998233050,-445482.40218314,0.00011,2]
[333258968,1721998233062,-3264.79091151,0.00011,2]
[333258969,1721998233084,-2121.37763752,0.00011,2]
[333258970,1721998233100,-466.63551131,0.00011,2]
[333258971,1721998233115,-7458.35511987,0.00011,2]
[333258972,1721998233132,-2623.158139,0.00011,2]
[333258973,1721998233145,-505.95034743,0.00011,2]
[333258983,1721998237719,-778.63202683,0.00011,2]
[333258987,1721998237778,-199.0,0.00010996,2]
[333258988,1721998237787,-7535.20720704,0.00011,2]
[333258989,1721998237798,-11911.24209814,0.00011,2]
[333258990,1721998237838,-282.04696975,0.00011,2]
[333258991,1721998237849,-566.76354058,0.00011,2]
[333258992,1721998237859,-6628.30439943,0.00011,2]
[333258993,1721998237870,-53622.47592908,0.00011,2]
[333258994,1721998237881,-358.33485164,0.00011,2]
[333258995,1721998237960,-5556.73676619,0.00011,2]
[333258996,1721998237971,-211136.50350283,0.00011,2]
[333258997,1721998237982,-1178.618413,0.00011,2]
[333258998,1721998237993,-628.66127068,0.00011,2]
[333258999,1721998238074,-914.0500234,0.00011,2]
[333259000,1721998238085,-2166.78342138,0.00011,2]
[333259001,1721998238096,-1482.19824151,0.00011,2]
[333259159,1721998239852,-500.0,0.00010994,2]
[333259161,1721998239863,-500.0,0.00010999,2]
[333259162,1721998239872,-500.0,0.00010999,2]
[333259164,1721998239881,-500.0,0.00010999,2]
[333259166,1721998239892,-500.0,0.00010999,2]
[333259168,1721998239901,-500.0,0.00010999,2]
[333259170,1721998239911,-2814.69499965,0.00011,2]
[333259173,1721998239922,-3094.16293897,0.00011,2]
[333259175,1721998239934,-60860.16412772,0.00011,2]
[333259177,1721998239946,-337.94,0.00011,2]
[333259186,1721998240021,-264.18399518,0.00010999,2]
[333259411,1721998242888,-235.81600482,0.00010999,2]
[333259413,1721998242898,-476.00911876,0.00010999,2]
[333259419,1721998242946,-23.99088124,0.00010999,2]
[333259421,1721998242956,-500.0,0.00010999,2]
[333259423,1721998242965,-500.0,0.00010999,2]
[333259425,1721998242974,-500.0,0.00010999,2]
[333259427,1721998242984,-500.0,0.00010999,2]
[333259429,1721998242993,-56.68911876,0.00010999,2]
[333259431,1721998243004,-443.31088124,0.00010999,2]
[333259433,1721998243014,-500.0,0.00010999,2]
[333259435,1721998243023,-12.31052402,0.00010999,2]
[333259437,1721998243034,-487.68947598,0.00010999,2]
[333259439,1721998243044,-87653.78801629,0.00011,2]
[333259441,1721998243054,-34341.73745145,0.00011,2]
[333259446,1721998243100,-2724.565046,0.00011,2]
[333259448,1721998243126,-288600.50285215,0.00011,2]
[333259458,1721998243353,-1905.66426143,0.00011,2]
[333259461,1721998243365,-614.29174979,0.00011,2]
[333259463,1721998243376,-75141.55080995,0.00011,2]
[333259558,1721998245779,-335.451,0.00010994,2]
[333259559,1721998245896,-584.729,0.00010994,2]
[333259560,1721998245906,-500.0,0.00010999,2]
[333259561,1721998245915,-500.0,0.00010999,2]
[333259562,1721998245926,-317.5903438,0.00010999,2]
[333259569,1721998246601,-140.97071499,0.00010999,2]
[333259571,1721998246612,-41.43894121,0.00010999,2]
[333259573,1721998246621,-500.0,0.00010999,2]
[333259574,1721998246630,-318.15389126,0.00010999,2]
[333259575,1721998246641,-181.84610874,0.00010999,2]
[333259576,1721998246651,-500.0,0.00010999,2]
[333259577,1721998246660,-500.0,0.00010999,2]
[333259578,1721998246669,-500.0,0.00010999,2]
[333259579,1721998246678,-920.18,0.00010999,2]
[333259580,1721998246687,-25175.2514295,0.00011,2]
[333259616,1721998496348,159.95,0.0001337,30]
[333259626,1721998773531,1000.0,0.000182,120]
[333259629,1721998966625,200.4,0.00015,30]
[333259630,1721999016021,159.95,0.0001337,30]
[333259658,1721999432003,-193.39,8.219e-05,2]
[333259659,1721999432013,-250.0,9.579e-05,2]
[333259660,1721999432023,-963.94,9.712e-05,2]
[333259661,1721999432032,-2820.7563352,9.753e-05,2]
[333259662,1721999432060,-943.09082566,9.753e-05,2]
[333259663,1721999432071,-7823.73689433,9.753e-05,2]
[333259664,1721999432082,-12312.41594481,9.753e-05,2]
[333259665,1721999432091,-5685.34,9.827e-05,2]
[333259666,1721999432099,-1000.0,9.864e-05,2]
[333259667,1721999432109,-150.0,9.899e-05,2]
[333259668,1721999432119,-500.0,9.9e-05,2]
[333259669,1721999432128,-49861.73648793,9.9e-05,2]
[333259670,1721999432140,-10283.09270712,9.9e-05,2]
[333259671,1721999432156,-3076.40025436,9.9e-05,2]
[333259672,1721999432168,-919.32000046,9.9e-05,2]
[333259673,1721999432179,-630.85,9.9e-05,2]
[333259674,1721999432190,-1085.42033485,9.9e-05,2]
[333259675,1721999432236,-494.0133311,9.9e-05,2]
[333259676,1721999432249,-77901.00418418,9.9e-05,2]
[333259677,1721999432259,-692.35,9.9e-05,2]
[333259678,1721999432268,-499.99,9.9e-05,2]
[333259679,1721999432277,-299.99,9.9e-05,2]
[333259680,1721999432287,-200.0,9.931e-05,2]
[333259681,1721999432296,-1250.0,0.0001,2]
[333259682,1721999432306,-179.99,0.0001,2]
[333259683,1721999432316,-75765.3967,0.00010028,2]
[333259684,1721999432325,-200.0,0.00010033,2]
[333259685,1721999432334,-357.07,0.00010033,2]
[333259686,1721999432344,-3361.0332,0.00010128,2]
[333259687,1721999432353,-5243.8644,0.00010128,2]
[333259688,1721999432363,-1800.9031,0.00010128,2]
[333259689,1721999432373,-150.99,0.00010152,2]
[333259690,1721999432382,-8208.12,0.00010152,2]
[333259691,1721999432392,-4686.42,0.00010152,2]
[333259692,1721999432402,-171.4,0.00010381,2]
[333259693,1721999432412,-891.76,0.00010441,2]
[333259694,1721999432422,-420.27,0.00010441,2]
[333259695,1721999432432,-420.27,0.00010441,2]
[333259696,1721999432441,-420.27,0.00010441,2]
[333259697,1721999432451,-420.27,0.00010441,2]
[333259698,1721999432460,-193.39,0.00010464,2]
[333259700,1721999432470,-150.0,0.00010466,2]
[333259701,1721999432480,-2892.0,0.0001078,2]
[333259702,1721999432489,-8185.6057,0.000108,2]
[333259703,1721999432498,-2026.2416,0.000108,2]
[333259704,1721999432508,-372.65442476,0.000108,2]
[333259705,1721999432517,-372.65442476,0.00010825,2]
[333259706,1721999432527,-372.65442476,0.0001085,2]
[333259707,1721999432537,-155.0,0.0001086,2]
[333259708,1721999432546,-372.65442476,0.00010875,2]
[333259709,1721999432556,-255.0,0.00010889,2]
[333259710,1721999432565,-167.5151402,0.00010899,2]
[333259711,1721999432574,-534.7,0.000109,7]
[333259712,1721999432583,-1210.9781,0.000109,2]
[333259713,1721999432593,-13256.8447,0.000109,2]
[333259714,1721999432602,-541.6496,0.000109,2]
[333259715,1721999432612,-100000.0,0.000109,2]
[333259716,1721999432622,-1000.0,0.000109,2]
[333259717,1721999432631,-208.67051964,0.000109,2]
[333259718,1721999432640,-372.65442476,0.000109,2]
[333259719,1721999432650,-164.77839754,0.000109,2]
[333259720,1721999432660,-167.5151402,0.000109,2]
[333259721,1721999432671,-238.17491204,0.000109,2]
[333259722,1721999432680,-520.4750003,0.000109,2]
[333259723,1721999432694,-150.0,0.0001091,2]
[333259724,1721999432703,-500.0,0.00010958,2]
[333259725,1721999432713,-500.0,0.00010958,2]
[333259726,1721999432723,-500.0,0.00010958,2]
[333259727,1721999432732,-551.13528779,0.00010958,2]
[333259728,1721999432741,-500.0,0.00010958,2]
[333259729,1721999432750,-500.0,0.00010958,2]
[333259730,1721999432759,-500.0,0.00010958,2]
[333259731,1721999432769,-544.82439477,0.00010958,2]
[333259732,1721999432778,-500.0,0.00010958,2]
[333259733,1721999432787,-500.0,0.00010958,2]
[333259734,1721999432798,-500.0,0.00010958,2]
[333259735,1721999432807,-500.0,0.00010958,2]
[333259736,1721999432817,-500.0,0.00010958,2]
[333259737,1721999432827,-500.0,0.00010958,2]
[333259738,1721999432839,-500.0,0.00010958,2]
[333259739,1721999432848,-500.0,0.00010958,2]
[333259740,1721999432858,-500.0,0.00010958,2]
[333259741,1721999432867,-500.0,0.00010958,2]
[333259742,1721999432877,-500.0,0.00010958,2]
[333259743,1721999432886,-500.0,0.00010958,2]
[333259744,1721999432895,-500.0,0.00010958,2]
[333259745,1721999432905,-548.89674557,0.00010958,2]
[333259746,1721999432915,-500.0,0.00010958,2]
[333259747,1721999432924,-500.0,0.00010958,2]
[333259748,1721999432934,-170.79562644,0.00010958,2]
[333259749,1721999432943,-547.27,0.00010958,2]
[333259750,1721999432952,-500.0,0.00010958,2]
[333259751,1721999432962,-500.0,0.00010958,2]
[333259752,1721999432972,-500.0,0.00010958,2]
[333259753,1721999432982,-500.0,0.00010958,2]
[333259754,1721999432991,-500.0,0.00010958,2]
[333259755,1721999433001,-500.0,0.00010958,2]
[333259756,1721999433010,-500.0,0.00010958,2]
[333259757,1721999433021,-500.0,0.00010958,2]
[333259758,1721999433030,-500.0,0.00010958,2]
[333259759,1721999433040,-569.91,0.00010958,2]
[333259760,1721999433049,-502.41858159,0.00010958,2]
[333259761,1721999433059,-500.0,0.00010958,2]
[333259762,1721999433068,-500.0,0.00010958,2]
[333259763,1721999433078,-500.0,0.00010958,2]
[333259764,1721999433087,-502.97141347,0.00010958,2]
[333259765,1721999433097,-500.0,0.00010958,2]
[333259766,1721999433107,-500.0,0.00010958,2]
[333259767,1721999433116,-552.02,0.00010958,2]
[333259768,1721999433126,-500.79407359,0.00010958,2]
[333259769,1721999433136,-551.36,0.00010958,2]
[333259770,1721999433145,-500.0,0.00010958,2]
[333259771,1721999433155,-501.68898851,0.00010958,2]
[333259772,1721999433166,-501.30077732,0.00010958,2]
[333259773,1721999433176,-501.79365998,0.00010958,2]
[333259774,1721999433186,-588.86,0.00010958,2]
[333259775,1721999433195,-500.0,0.00010958,2]
[333259776,1721999433205,-500.0,0.00010958,2]
[333259777,1721999433214,-500.0,0.00010958,2]
[333259778,1721999433224,-500.0,0.00010958,2]
[333259779,1721999433234,-500.0,0.00010958,2]
[333259780,1721999433243,-500.0,0.00010958,2]
[333259781,1721999433254,-500.0,0.00010958,2]
[333259782,1721999433263,-500.0,0.00010958,2]
[333259783,1721999433272,-583.78,0.00010958,2]
[333259784,1721999433282,-500.0,0.00010958,2]
[333259785,1721999433291,-500.0,0.00010958,2]
[333259786,1721999433301,-500.0,0.00010958,2]
[333259787,1721999433310,-541.63,0.00010958,2]
[333259788,1721999433320,-513.52,0.00010958,2]
[333259789,1721999433330,-500.0,0.00010958,2]
[333259790,1721999433341,-576.05,0.00010958,2]
[333259791,1721999433352,-450.0,0.00010958,2]
[333259792,1721999433362,-200.0,0.00010959,2]
[333259793,1721999433373,-500.0,0.00010987,2]
[333259794,1721999433383,-500.0,0.00010987,2]
[333259795,1721999433392,-500.0,0.00010987,2]
[333259796,1721999433402,-500.0,0.00010987,2]
[333259797,1721999433412,-500.0,0.00010987,2]
[333259798,1721999433422,-500.0,0.00010987,2]
[333259799,1721999433432,-500.0,0.00010987,2]
[333259800,1721999433442,-500.0,0.00010987,2]
[333259801,1721999433451,-500.0,0.00010987,2]
[333259802,1721999433460,-500.0,0.00010987,2]
[333259803,1721999433469,-631.52,0.00010987,2]
[333259804,1721999433479,-500.0,0.00010987,2]
[333259805,1721999433489,-504.23971985,0.00010987,2]
[333259806,1721999433500,-500.0,0.00010987,2]
[333259807,1721999433510,-531.26947159,0.00010987,2]
[333259808,1721999433520,-500.0,0.00010987,2]
[333259809,1721999433530,-500.0,0.00010987,2]
[333259810,1721999433540,-500.0,0.00010987,2]
[333259811,1721999433550,-500.0,0.00010987,2]
[333259812,1721999433560,-559.7,0.00010987,2]
[333259813,1721999433569,-3084.31957934,0.00010988,2]
[333259814,1721999433579,-1000.0,0.0001099,6]
[333259815,1721999433589,-1000.0,0.0001099,5]
[333259816,1721999433599,-500.0,0.00010994,2]
[333259817,1721999433609,-500.0,0.00010994,2]
[333259818,1721999433619,-500.0,0.00010994,2]
[333259819,1721999433628,-500.0,0.00010994,2]
[333259820,1721999433638,-500.0,0.00010994,2]
[333259821,1721999433647,-500.0,0.00010994,2]
[333259822,1721999433657,-500.0,0.00010994,2]
[333259823,1721999433666,-500.0,0.00010994,2]
[333259824,1721999433676,-500.0,0.00010994,2]
[333259825,1721999433686,-500.0,0.00010994,2]
[333259826,1721999433696,-500.0,0.00010994,2]
[333259827,1721999433706,-500.0,0.00010994,2]
[333259828,1721999433715,-546.89834449,0.00010994,2]
[333259829,1721999433725,-500.0,0.00010994,2]
[333259830,1721999433734,-2597.54,0.00010994,2]
[333259831,1721999433745,-179.02196653,0.00010995,2]
[333259832,1721999433754,-150.0,0.00010996,2]
[333259833,1721999433764,-264.19,0.00010996,2]
[333259834,1721999433773,-500.0,0.00010997,2]
[333259835,1721999433783,-716.08786612,0.00010997,2]
[333259836,1721999433793,-82470.99584517,0.00010998,2]
[333259837,1721999433807,-131473.41342483,0.00010998,2]
[333259838,1721999433817,-920.18,0.00010999,2]
[333259839,1721999433826,-309.04,0.00010999,2]
[333259840,1721999433839,-920.18,0.00010999,2]
[333259841,1721999433849,-920.18,0.00010999,2]
[333259842,1721999433859,-920.18,0.00010999,2]
[333259843,1721999433869,-920.18,0.00010999,2]
[333259844,1721999433879,-920.18,0.00010999,2]
[333259845,1721999433888,-920.18,0.00010999,2]
[333259846,1721999433898,-920.18,0.00010999,2]
[333259847,1721999433908,-920.18,0.00010999,2]
[333259848,1721999433920,-920.18,0.00010999,2]
[333259849,1721999433930,-920.18,0.00010999,2]
[333259850,1721999433940,-920.18,0.00010999,2]
[333259851,1721999433950,-920.18,0.00010999,2]
[333259852,1721999433960,-920.18,0.00010999,2]
[333259853,1721999433969,-920.18,0.00010999,2]
[333259854,1721999433979,-920.18,0.00010999,2]
[333259855,1721999433988,-920.18,0.00010999,2]
[333259856,1721999433998,-920.18,0.00010999,2]
[333259857,1721999434008,-920.18,0.00010999,2]
[333259858,1721999434018,-920.18,0.00010999,2]
[333259859,1721999434027,-920.18,0.00010999,2]
[333259860,1721999434036,-920.33325649,0.00010999,2]
[333259861,1721999434045,-500.0,0.00010999,2]
[333259862,1721999434055,-500.0,0.00010999,2]
[333259863,1721999434064,-500.0,0.00010999,2]
[333259864,1721999434074,-500.0,0.00010999,2]
[333259865,1721999434083,-500.0,0.00010999,2]
[333259866,1721999434093,-500.0,0.00010999,2]
[333259867,1721999434102,-500.0,0.00010999,2]
[333259868,1721999434111,-500.0,0.00010999,2]
[333259869,1721999434122,-500.0,0.00010999,2]
[333259870,1721999434131,-500.0,0.00010999,2]
[333259871,1721999434140,-500.0,0.00010999,2]
[333259872,1721999434150,-500.0,0.00010999,2]
[333259873,1721999434159,-500.0,0.00010999,2]
[333259874,1721999434169,-500.0,0.00010999,2]
[333259875,1721999434179,-500.0,0.00010999,2]
[333259876,1721999434188,-500.0,0.00010999,2]
[333259877,1721999434197,-500.0,0.00010999,2]
[333259878,1721999434208,-500.0,0.00010999,2]
[333259879,1721999434217,-500.0,0.00010999,2]
[333259880,1721999434227,-357.32,0.00010999,2]
[333259881,1721999434236,-517.95,0.00010999,2]
[333259882,1721999434246,-500.0,0.00010999,2]
[333259883,1721999434255,-500.0,0.00010999,2]
[333259884,1721999434264,-449.41,0.00010999,2]
[333259885,1721999434273,-377.33,0.00010999,2]
[333259886,1721999434283,-500.0,0.00010999,2]
[333259887,1721999434293,-500.0,0.00010999,2]
[333259888,1721999434302,-161.42,0.00010999,2]
[333259889,1721999434312,-2597.54,0.00010999,2]
[333259890,1721999434321,-2597.54,0.00010999,2]
[333259891,1721999434330,-2597.54,0.00010999,2]
[333259892,1721999434340,-2597.54,0.00010999,2]
[333259893,1721999434350,-2597.54,0.00010999,2]
[333259894,1721999434359,-2597.54,0.00010999,2]
[333259895,1721999434369,-2597.54,0.00010999,2]
[333259896,1721999434379,-2597.54,0.00010999,2]
[333259897,1721999434388,-2597.54,0.00010999,2]
[333259898,1721999434398,-2597.54,0.00010999,2]
[333259899,1721999434407,-2597.54,0.00010999,2]
[333259900,1721999434417,-2597.54,0.00010999,2]
[333259901,1721999434427,-2597.54,0.00010999,2]
[333259902,1721999434436,-2597.54,0.00010999,2]
[333259903,1721999434446,-2597.54,0.00010999,2]
[333259904,1721999434455,-2597.54,0.00010999,2]
[333259905,1721999434464,-2597.54,0.00010999,2]
[333259906,1721999434474,-2597.54,0.00010999,2]
[333259907,1721999434483,-2597.54,0.00010999,2]
[333259908,1721999434493,-2597.54,0.00010999,2]
[333259909,1721999434503,-2597.54,0.00010999,2]
[333259910,1721999434512,-737.86823685,0.00010999,2]
[333259911,1721999434525,-1859.67176315,0.00010999,2]
[333259912,1721999434534,-249.7656504,0.00010999,2]
[333259913,1721999434554,-460.43123519,0.00010999,2]
[333259914,1721999434565,-301.2900896,0.00010999,2]
[333259915,1721999434577,-658.25,0.00010999,2]
[333259923,1721999438016,-670.86660603,0.00010999,2]
[333259924,1721999438076,-257.08605297,0.00010999,2]
[333259925,1721999438086,-2996.0986604,0.00011,2]
[333259926,1721999438099,-1251.34130064,0.00011,2]
[333259927,1721999438110,-729.82228752,0.00011,2]
[333259928,1721999438184,-2183.16426548,0.00011,2]
[333259929,1721999438243,-472.39959496,0.00011,2]
[333259930,1721999438254,-1009.91881608,0.00011,2]
[333259931,1721999438357,-4552.91952645,0.00011,2]
[333259932,1721999438373,-609.04084905,0.00011,2]
[333259933,1721999438384,-2084.0327375,0.00011,2]
[333259934,1721999438396,-2158.98320904,0.00011,2]
[333259943,1721999439966,-662.70634916,0.00011,2]
[333259945,1721999439978,-2141.25728077,0.00011,2]
[333259946,1721999439992,-2191.28868631,0.00011,2]
[333259947,1721999440087,-630.25841339,0.00011,2]
[333259948,1721999440098,-441.48538942,0.00011,2]
[333259949,1721999440109,-939.63137312,0.00011,2]
[333259950,1721999440202,-505.53116172,0.00011,2]
[333259951,1721999440262,-902.16144431,0.00011,2]
[333259952,1721999440274,-2476.92546041,0.00011,2]
[333259953,1721999440285,-2954.1894928,0.00011,2]
[333259954,1721999440296,-502.36071293,0.00011,2]
[333259955,1721999440324,-10459.095,0.00011,2]
[333260087,1721999443130,-4085.41056951,0.00011,2]
[333260088,1721999443141,-1641.75281423,0.00011,2]
[333260089,1721999443197,-103083.75968578,0.00011,2]
[333260090,1721999443206,-185516.74316637,0.00011,2]
[333260091,1721999443250,-8264.97603201,0.00011,2]
[333260263,1721999446568,-1765.61032293,0.00011,2]
[333260264,1721999446579,-624.09688597,0.00011,2]
[333260265,1721999446591,-2073.29355406,0.00011,2]
[333260266,1721999446786,-7518.8361788,0.00011,2]
[333260273,1721999796743,159.95,0.0001337,30]
[333260274,1722000152568,-174.05,8.219e-05,2]
[333260275,1722000152591,-300.0,9.099e-05,2]
[333260276,1722000152612,-283.0,9.099e-05,2]
[333260277,1722000152633,-20000.0,9.1e-05,2]
[333260278,1722000152653,-394.99,9.638e-05,2]
[333260279,1722000152674,-15847.96,9.638e-05,2]
[333260280,1722000275641,205.5,0.00015,30]
[333260281,1722000361437,159.95,0.0001337,30]
[333260297,1722000632492,-172.93,8.219e-05,2]
[333260298,1722000632502,-722.338587,9.275e-05,2]
[333260299,1722000632511,-200.0,9.323e-05,2]
[333260300,1722000632520,-1509.56,9.384e-05,2]
[333260301,1722000632530,-373.81,9.497e-05,2]
[333260302,1722000632539,-250.0,9.573e-05,2]
[333260303,1722000632548,-1000.0,9.602e-05,2]
[333260304,1722000632558,-1075.70075046,9.638e-05,2]
[333260305,1722000632636,-1740.0,9.638e-05,2]
[333260306,1722000632648,-3912.56424954,9.638e-05,2]
[333260307,1722000632657,-3384.88987144,9.638e-05,2]
[333260308,1722000632668,-418.9295176,9.638e-05,2]
[333260309,1722000632679,-1312.15,9.638e-05,2]
[333260310,1722000632690,-2936.07061096,9.638e-05,2]
[333260311,1722000632700,-500.0,9.656e-05,2]
[333260312,1722000632710,-629.50035176,9.7e-05,2]
[333260313,1722000632733,-669.26964824,9.7e-05,2]
[333260314,1722000632743,-399.57,9.724e-05,2]
[333260315,1722000632752,-3288.56,9.774e-05,2]
[333260316,1722000632761,-150.0,9.799e-05,2]
[333260317,1722000632771,-100000.0,9.8e-05,2]
[333260318,1722000632780,-282.7298,9.8e-05,2]
[333260319,1722000632789,-4471.6253,9.828e-05,2]
[333260320,1722000632798,-101529.0577,9.828e-05,2]
[333260321,1722000632807,-150.99,9.928e-05,2]
[333260323,1722000632816,-86927.3058,9.928e-05,2]
[333260325,1722000632826,-374.9891,9.928e-05,2]
[333260327,1722000632835,-171.4,0.00010331,2]
[333260329,1722000632845,-172.93,0.0001046,2]
[333260331,1722000632854,-5216.85075143,0.00010497,2]
[333260333,1722000632864,-1000.0,0.00010803,2]
[333260335,1722000632873,-163697.67520361,0.0001088,2]
[333260361,1722000638369,-47084.8847839,0.0001088,2]
[333260418,1722000640193,-13540.8,0.0001088,2]
[333260420,1722000640283,-1291.70730998,0.0001088,2]
[333260515,1722000643169,-45835.2100006,0.0001088,2]
[333260516,1722000643181,-339.955,0.0001088,2]
[333260517,1722000643193,-1507.29,0.0001088,2]
[333260518,1722000643205,-100599.3399029,0.0001088,2]
[333260519,1722000643215,-153.16842,0.0001089,2]
[333260520,1722000643225,-3000.0,0.0001089,2]
[333260521,1722000643237,-8506.03902399,0.00010899,2]
[333260522,1722000643247,-8506.0390239,0.00010899,2]
[333260523,1722000643256,-8506.0390239,0.00010899,2]
[333260524,1722000643266,-8506.0390239,0.00010899,2]
[333260525,1722000643275,-8506.0390239,0.00010899,2]
[333260526,1722000643285,-8506.0390239,0.00010899,2]
[333260527,1722000643294,-8506.0390239,0.00010899,2]
[333260528,1722000643303,-8506.0390239,0.00010899,2]
[333260529,1722000643315,-8506.0390239,0.00010899,2]
[333260530,1722000643327,-1400.52228302,0.000109,2]
[333260531,1722000643337,-6000.0,0.000109,2]
[333260532,1722000643347,-8506.0390239,0.000109,2]
[333260533,1722000643357,-1400.52228301,0.000109,2]
[333260534,1722000643366,-500.0,0.00010958,2]
[333260535,1722000643377,-559.19361018,0.00010958,2]
[333260536,1722000643387,-500.0,0.00010958,2]
[333260537,1722000643395,-500.0,0.00010958,2]
[333260538,1722000643404,-563.58775532,0.00010958,2]
[333260539,1722000643414,-500.0,0.00010958,2]
[333260540,1722000643423,-500.0,0.00010958,2]
[333260541,1722000643431,-504.72299565,0.00010958,2]
[333260542,1722000643441,-537.94126754,0.00010958,2]
[333260543,1722000643450,-500.0,0.00010958,2]
[333260544,1722000643459,-500.0,0.00010958,2]
[333260545,1722000643468,-528.81081715,0.00010958,2]
[333260546,1722000643478,-509.5561758,0.00010958,2]
[333260547,1722000643487,-503.19268886,0.00010958,2]
[333260548,1722000643496,-489.37440486,0.00010958,2]
[333260549,1722000643506,-500.0,0.00010958,2]
[333260550,1722000643515,-500.0,0.00010958,2]
[333260552,1722000643524,-500.0,0.00010958,2]
[333260554,1722000643533,-504.83572578,0.00010958,2]
[333260556,1722000643542,-500.0,0.00010958,2]
[333260558,1722000643551,-500.0,0.00010958,2]
[333260559,1722000643560,-509.91719364,0.00010958,2]
[333260561,1722000643569,-500.0,0.00010958,2]
[333260563,1722000643579,-500.0,0.00010958,2]
[333260565,1722000643588,-500.0,0.00010958,2]
[333260567,1722000643599,-500.0,0.00010958,2]
[333260569,1722000643608,-500.0,0.00010958,2]
[333260571,1722000643616,-446.41755237,0.00010958,2]
[333260572,1722000643629,-500.0,0.00010958,2]
[333260573,1722000643638,-530.17603325,0.00010958,2]
[333260574,1722000643647,-243.2565969,0.00010958,2]
[333260575,1722000643657,-500.0,0.00010958,2]
[333260576,1722000643666,-506.17915269,0.00010958,2]
[333260577,1722000643676,-500.0,0.00010958,2]
[333260578,1722000643686,-500.0,0.00010958,2]
[333260579,1722000643695,-504.40581595,0.00010958,2]
[333260580,1722000643704,-500.0,0.00010958,2]
[333260581,1722000643714,-521.66184621,0.00010958,2]
[333260582,1722000643723,-505.58763237,0.00010958,2]
[333260583,1722000643732,-543.32347854,0.00010958,2]
[333260584,1722000643741,-500.0,0.00010958,2]
[333260585,1722000643752,-618.30139854,0.00010958,2]
[333260586,1722000643762,-531.37247022,0.00010958,2]
[333260587,1722000643772,-521.30822556,0.00010958,2]
[333260588,1722000643782,-480.41554602,0.00010958,2]
[333260589,1722000643793,-500.0,0.00010958,2]
[333260590,1722000643802,-505.00032311,0.00010958,2]
[333260591,1722000643812,-547.06480957,0.00010958,2]
[333260592,1722000643821,-500.0,0.00010958,2]
[333260593,1722000643830,-502.87177505,0.00010958,2]
[333260594,1722000643839,-505.10975912,0.00010958,2]
[333260595,1722000643849,-328.86025147,0.00010958,2]
[333260596,1722000643858,-405.55949258,0.00010958,2]
[333260597,1722000643868,-235.19587655,0.00010958,2]